bitfinex-derivatives/quotes_ETHF0:USTF0_20241230
["timestamp","ask_amount","ask_price","bid_price","bid_amount"]
[1735548312845,0.63364222,3421.4,3420.9,2.33753594]
[1735548313052,0.17937401,3421.4,3421.3,0.29282]
[1735548313443,4.75639945,3421.4,3421.3,0.29282]
[1735548313941,4.57702544,3421.4,3421.3,0.29282]
[1735548314344,4.57702544,3421.4,3421.2,0.29282]
[1735548314547,4.57702544,3421.4,3421.3,1.05092]
[1735548315149,3.2078,3421.5,3421.3,1.05092]
[1735548315749,3.2078,3421.5,3421.4,0.29281]
[1735548316843,3.2078,3421.9,3421.3,0.7581]
[1735548317047,3.2078,3421.9,3421.8,0.29278]
[1735548317346,4.57702544,3422.1,3421.6,5.54533594]
[1735548317654,4.57702544,3422.1,3422.0,0.29276]
[1735548317950,3.2078,3422.4,3422.0,0.29276]
[1735548317951,3.50053,3422.4,3422.0,0.29276]
[1735548318151,3.50053,3422.4,3422.0,1.03216]
[1735548318346,0.29274,3422.3,3422.0,1.9054]
[1735548318653,3.2078,3422.4,3422.0,1.9054]
[1735548318654,3.50053,3422.4,3422.0,1.9054]
[1735548319346,0.29274,3422.3,3422.0,1.9054]
[1735548320549,3.2078,3422.4,3422.0,1.9054]
[1735548320754,0.7486,3422.6,3422.5,0.29272]
[1735548321055,3.2078,3422.8,3422.6,0.29271]
[1735548321847,6.07672544,3423.0,3422.5,3.2078]
[1735548322043,6.07672544,3423.0,3422.7,0.2927]
[1735548322250,5.31222544,3423.0,3422.5,5.54533594]
[1735548322552,4.57702544,3423.0,3422.9,0.29269]
[1735548322754,3.2078,3423.3,3422.8,1.45869]
[1735548322955,0.2927,3422.8,3422.5,5.54533594]
[1735548323255,0.29271,3422.6,3422.5,3.2078]
[1735548323459,4.8267,3422.7,3422.2,1.166]
[1735548323653,0.29273,3422.4,3422.0,1.03216]
[1735548323857,0.29273,3422.4,3422.0,2.19816]
[1735548324160,0.7915,3422.5,3422.1,0.29275]
[1735548324355,0.7915,3422.5,3422.0,1.9054]
[1735548324554,0.7915,3422.5,3422.4,0.29273]
[1735548324862,4.8267,3422.7,3422.4,0.29273]
[1735548325063,4.3115,3422.7,3422.3,0.29273]
[1735548325362,4.3115,3422.7,3422.2,2.33753594]
[1735548325363,4.0188,3422.7,3422.0,1.9054]
[1735548325565,4.0188,3422.7,3422.1,0.29275]
[1735548325566,1.10062,3422.6,3422.1,0.29275]
[1735548325757,1.10062,3422.6,3422.2,0.29274]
[1735548326557,4.31151,3422.7,3422.1,0.29275]
[1735548326759,4.31151,3422.7,3422.4,0.29273]
[1735548328363,4.0188,3422.7,3422.4,0.29273]
[1735548328670,0.7915,3423.0,3422.3,3.2078]
[1735548328962,0.2927,3422.8,3422.4,1.03592]
[1735548329164,0.2927,3422.8,3422.5,0.29272]
[1735548330166,0.7594,3422.9,3422.6,0.2927]
[1735548331668,0.7594,3422.9,3422.7,0.2927]
[1735548331857,0.7594,3422.9,3422.4,0.7432]
[1735548332168,0.2927,3422.8,3422.4,1.03592]
[1735548332568,0.2927,3422.8,3422.5,0.29272]
[1735548332769,3.2078,3422.7,3422.4,0.7432]
[1735548332962,0.29274,3422.4,3422.0,1.77996]
[1735548333267,1.5445,3422.3,3422.1,1.165]
[1735548334273,1.5445,3422.3,3422.2,2.63028594]
[1735548334476,3.50051,3422.7,3422.3,0.29273]
[1735548334671,4.7523,3422.6,3422.3,0.29274]
[1735548335664,4.7523,3422.6,3422.2,2.33753594]
[1735548335977,1.5445,3422.6,3422.5,0.29272]
[1735548336380,3.2078,3423.0,3422.7,0.29269]
[1735548336671,4.29798,3423.0,3422.7,0.29269]
[1735548336872,5.07498,3423.0,3422.7,0.29269]
[1735548337380,4.7823,3423.0,3422.3,3.2078]
[1735548337573,0.29272,3422.5,3422.3,3.2078]
[1735548337777,1.5745,3422.4,3422.3,3.2078]
[1735548338178,1.5745,3422.4,3422.3,3.50054]
[1735548342083,1.5745,3422.4,3422.3,3.2078]
[1735548342277,1.86723,3422.4,3422.3,3.2078]
[1735548343980,0.29277,3422.0,3421.8,3.2078]
[1735548344183,1.06537,3421.9,3421.8,3.2078]
[1735548345180,1.06537,3421.9,3421.7,1.165]
[1735548346183,0.7726,3421.9,3421.7,1.165]
[1735548346385,3.2078,3422.0,3421.8,0.29278]
[1735548346585,3.2078,3422.0,3421.8,1.05128]
[1735548347687,0.29276,3422.1,3421.8,1.05128]
[1735548347889,3.2078,3422.0,3421.8,1.05128]
[1735548349283,3.2078,3422.0,3421.7,1.165]
[1735548349583,3.2078,3422.0,3421.3,0.2928]
[1735548349584,0.29279,3421.7,3421.5,1.4578]
[1735548350185,0.29279,3421.7,3421.5,0.2928]
[1735548350387,1.08489,3421.7,3421.5,0.2928]
[1735548350587,0.7921,3421.7,3421.5,0.2928]
[1735548351092,0.7921,3421.7,3421.4,1.9661]
[1735548351297,0.7921,3421.7,3421.6,0.2928]
[1735548351791,0.8086,3421.8,3421.6,0.2928]
[1735548351792,0.7494,3421.9,3421.8,0.29278]
[1735548352991,0.7494,3421.9,3421.6,2.33753594]
[1735548353292,0.7494,3421.9,3421.4,2.25891]
[1735548353293,0.29279,3421.7,3421.4,2.25891]
[1735548353595,0.29279,3421.7,3421.4,1.45781]
[1735548353893,1.5405,3421.8,3421.6,0.2928]
[1735548353894,1.83328,3421.8,3421.6,0.2928]
[1735548354196,1.83328,3421.8,3421.5,0.2928]
[1735548354594,0.2928,3421.6,3421.4,1.45781]
[1735548354795,0.29279,3421.7,3421.4,1.45781]
[1735548356199,0.29279,3421.7,3421.5,0.2928]
[1735548356592,1.83328,3421.8,3421.5,0.2928]
[1735548357199,0.29279,3421.7,3421.4,1.45781]
[1735548357496,1.83328,3421.8,3421.5,0.2928]
[1735548357891,0.29279,3421.7,3421.5,0.2928]
[1735548358092,1.5405,3421.8,3421.6,0.29279]
[1735548358498,1.83328,3421.8,3421.6,0.29279]
[1735548359201,0.7494,3421.9,3421.6,2.33753594]
[1735548359395,0.7494,3421.9,3421.8,0.29278]
[1735548359596,3.2078,3422.0,3421.9,0.29277]
[1735548359799,0.7777,3422.2,3422.1,0.29275]
[1735548360201,0.7777,3422.2,3421.4,1.165]
[1735548360396,0.29279,3421.7,3421.5,0.2928]
[1735548360594,0.29278,3421.8,3421.5,0.2928]
[1735548360899,0.7777,3421.6,3421.5,0.2928]
[1735548365203,3.2078,3422.0,3421.8,0.29277]
[1735548365405,0.8074,3421.9,3421.8,0.29277]
[1735548368105,0.8074,3421.9,3421.4,4.59825285]
[1735548368306,0.8074,3421.9,3421.8,0.29278]
[1735548370102,0.8036,3422.2,3421.8,3.2078]
[1735548370307,4.57702544,3422.3,3422.2,0.29275]
[1735548370607,4.57702544,3422.3,3422.2,3.50055]
[1735548371405,0.7866,3422.4,3422.3,0.29274]
[1735548371700,0.29275,3422.2,3422.1,1.165]
[1735548371906,0.47576089,3422.2,3422.1,1.165]
[1735548372405,1.28846089,3422.2,3422.1,1.165]
[1735548372598,0.99571089,3422.2,3422.1,1.165]
[1735548372998,0.18301089,3422.2,3422.1,1.45775]
[1735548373199,0.18302986,3422.2,3422.1,1.45775]
[1735548374311,0.63736995,3422.2,3422.1,1.45775]
[1735548375203,0.63737288,3422.2,3422.1,1.45775]
[1735548376005,0.47577986,3422.2,3422.1,1.165]
[1735548376201,0.18304154,3422.2,3421.8,4.59825285]
[1735548376403,0.4543083,3421.9,3421.8,4.59825285]
[1735548376602,0.63734984,3421.9,3421.8,0.29278]
[1735548376808,1.40834984,3421.9,3421.8,0.29278]
[1735548377312,0.29278,3421.8,3421.7,4.59825285]
[1735548377706,1.2253083,3421.9,3421.7,4.59825285]
[1735548378012,3.2078,3422.1,3421.7,6.93578879]
[1735548378310,3.43025354,3422.0,3421.9,0.29277]
[1735548379410,3.43025354,3422.0,3421.8,0.7415]
[1735548379611,0.29279,3421.8,3421.7,4.59825285]
[1735548379914,0.7541,3421.9,3421.7,4.59825285]
[1735548380105,0.7541,3421.9,3421.8,0.29278]
[1735548380709,0.7541,3421.9,3421.6,0.29279]
[1735548380906,1.04688,3421.9,3421.6,0.29279]
[1735548381606,0.18304843,3421.8,3421.5,5.76325285]
[1735548381806,0.6373481,3421.8,3421.5,5.76325285]
[1735548382008,0.18304843,3421.7,3421.6,0.2928]
[1735548382207,0.18304843,3421.7,3421.6,1.0447]
[1735548382408,0.18304005,3421.7,3421.6,1.0447]
[1735548382810,0.18304005,3421.7,3421.5,5.76325285]
[1735548383002,0.18304005,3421.6,3421.5,6.05606285]
[1735548383208,0.92634005,3421.6,3421.5,1.45781]
[1735548384809,0.18304005,3421.6,3421.5,1.45781]
[1735548385005,0.18304318,3421.7,3421.6,0.2928]
[1735548385412,0.18304285,3421.7,3421.6,0.2928]
[1735548386117,0.63729388,3421.7,3421.6,4.89496231]
[1735548387317,0.18304285,3421.7,3421.6,0.2928]
[1735548388114,0.63729388,3421.7,3421.5,6.05996231]
[1735548388617,2.30513103,3421.8,3421.6,4.60216231]
[1735548388819,2.30513103,3421.8,3421.6,4.89495231]
[1735548389021,2.30517002,3421.8,3421.6,4.89495231]
[1735548389419,0.45429002,3421.7,3421.6,4.89495231]
[1735548390029,0.45429002,3421.7,3421.6,0.29279]
[1735548390225,5.73542356,3421.8,3421.6,0.29279]
[1735548390519,0.45429002,3421.7,3421.6,0.29279]
[1735548390721,5.44263055,3421.8,3421.6,0.29279]
[1735548390919,5.73541055,3421.8,3421.6,0.29279]
[1735548391220,5.44263055,3421.8,3421.7,0.29279]
[1735548391420,2.01237701,3421.8,3421.7,0.29279]
[1735548391619,2.01239382,3421.8,3421.7,0.29279]
[1735548392121,0.45429382,3421.8,3421.7,0.29279]
[1735548392316,4.57702544,3421.9,3421.8,0.29278]
[1735548392515,4.57702544,3421.9,3421.8,2.63031594]
[1735548392719,4.57702544,3422.0,3421.9,0.29277]
[1735548393422,4.57702544,3422.0,3421.9,1.08917]
[1735548394126,3.43457896,3422.2,3422.1,0.29275]
[1735548394824,3.43457896,3422.2,3422.0,0.7877]
[1735548395129,0.29276,3422.0,3421.9,4.49778979]
[1735548395424,3.95468066,3422.0,3421.9,6.89524955]
[1735548395720,3.2078,3422.0,3421.9,6.89524955]
[1735548396020,3.2078,3422.0,3421.9,7.18801955]
[1735548396528,3.64709949,3422.0,3421.9,0.29277]
[1735548396914,3.64709949,3422.0,3421.8,2.33753594]
[1735548396915,4.38819949,3422.0,3421.8,2.63031594]
[1735548397323,4.38819949,3422.0,3421.8,2.33753594]
[1735548397533,4.38819949,3422.0,3421.9,0.29277]
[1735548397723,3.64709949,3422.0,3421.9,0.29277]
[1735548398119,6.64121071,3422.0,3421.9,4.89821841]
[1735548398929,6.64121071,3422.0,3421.9,5.63861841]
[1735548399622,3.2078,3422.0,3421.9,5.53007032]
[1735548400726,3.2078,3422.0,3421.9,4.78967032]
[1735548401122,3.2078,3422.0,3421.9,11.69555772]
[1735548402031,2.28889287,3422.1,3422.0,0.29276]
[1735548402826,2.28889287,3422.1,3422.0,1.05146]
[1735548403530,0.29275,3422.1,3422.0,4.49690032]
[1735548403719,3.50055,3422.1,3422.0,4.49690032]
[1735548405038,7.3732094,3422.1,3422.0,4.60402149]
[1735548405531,7.0804594,3422.1,3422.0,4.60402149]
[1735548406331,7.0804594,3422.1,3422.0,4.89678149]
[1735548406734,3.8726594,3422.1,3422.0,4.89678149]
[1735548407230,3.8726594,3422.1,3422.0,5.67188149]
[1735548407828,3.62735937,3422.4,3422.3,0.29274]
[1735548408027,3.02835937,3422.4,3422.3,2.63027594]
[1735548409135,4.57702544,3422.7,3422.6,0.29271]
[1735548409434,5.7212818,3423.1,3422.6,6.71033594]
[1735548409632,5.7212818,3423.1,3423.0,2.63021594]
[1735548409837,5.36214836,3423.2,3423.1,0.29267]
[1735548410025,4.57224836,3423.2,3423.1,0.29267]
[1735548411336,4.0065,3423.6,3423.0,5.54533594]
[1735548411532,4.0065,3423.6,3423.5,2.63016594]
[1735548411837,4.0065,3423.6,3423.5,3.79516594]
[1735548412634,0.7987,3423.6,3423.5,3.79516594]
[1735548413533,0.45221632,3424.0,3423.5,3.50253594]
[1735548413733,1.5238,3423.9,3423.8,0.29261]
[1735548414137,0.7812,3423.9,3423.8,0.29261]
[1735548414436,0.7812,3423.9,3423.7,0.29261]
[1735548414643,0.7562,3423.8,3423.4,3.2078]
[1735548414838,0.29262,3423.7,3423.5,1.165]
[1735548415037,0.7562,3423.8,3423.5,1.165]
[1735548415235,0.7562,3423.8,3423.2,2.33753594]
[1735548415438,0.7562,3423.8,3423.6,0.29262]
[1735548415945,3.50042,3423.7,3423.4,1.45764]
[1735548416136,3.2078,3423.7,3423.4,1.45764]
[1735548416336,0.29263,3423.6,3423.4,1.165]
[1735548416637,3.9523658,3423.7,3423.4,1.45764]
[1735548416838,0.7988,3423.5,3423.4,1.45764]
[1735548417139,0.7988,3423.5,3423.4,1.165]
[1735548417443,0.98177418,3423.5,3423.4,1.165]
[1735548418039,0.98177418,3423.5,3423.3,0.29265]
[1735548418337,0.18296902,3423.4,3423.3,0.29265]
[1735548419235,0.18297156,3423.4,3423.3,0.29265]
[1735548420743,0.18297156,3423.4,3423.1,1.165]
[1735548420744,0.18297382,3423.4,3423.1,1.165]
[1735548420935,0.92087382,3423.3,3423.1,1.165]
[1735548421136,0.7379,3423.3,3423.2,0.29266]
[1735548421340,0.7379,3423.3,3422.9,0.29268]
[1735548421341,0.92087354,3423.3,3422.9,0.29268]
[1735548421536,0.29268,3423.1,3422.8,0.29269]
[1735548421835,3.2078,3422.9,3422.5,4.59485926]
[1735548422041,0.18297354,3422.8,3422.6,0.29271]
[1735548422244,0.7379,3422.7,3422.6,0.29271]
[1735548422437,0.92087354,3422.7,3422.6,0.29271]
[1735548422642,0.92087354,3422.7,3422.5,4.59485926]
[1735548422643,1.21358354,3422.7,3422.5,4.59485926]
[1735548422839,0.18297354,3422.6,3422.5,4.59485926]
[1735548423245,0.18297354,3422.6,3422.3,1.164]
[1735548423442,0.47568354,3422.6,3422.3,0.29273]
[1735548423743,0.18297354,3422.5,3422.3,0.29273]
[1735548423935,0.29273,3422.4,3422.1,0.29275]
[1735548424140,0.99302123,3422.3,3422.1,1.45675]
[1735548424345,0.81,3422.3,3422.2,0.29275]
[1735548424641,0.993024,3422.3,3422.2,0.29275]
[1735548426534,0.183024,3422.3,3422.2,0.29275]
[1735548426738,0.7379,3422.7,3422.6,0.29271]
[1735548427039,0.92090832,3422.7,3422.6,0.29271]
[1735548427442,0.92091188,3422.7,3422.6,0.29271]
[1735548427848,0.92091188,3422.7,3422.5,0.29272]
[1735548428036,0.18301188,3422.6,3422.0,3.50153594]
[1735548428238,0.18301188,3422.6,3422.5,0.29272]
[1735548433542,0.18300114,3422.6,3422.5,0.29272]
[1735548433740,0.7379,3422.7,3422.5,3.2078]
[1735548433948,0.7379,3422.7,3422.6,2.63024594]
[1735548434846,0.920897,3422.7,3422.6,0.29271]
[1735548435745,0.92088971,3422.7,3422.6,0.29271]
[1735548436646,0.92089401,3422.7,3422.6,0.29271]
[1735548437949,0.92089401,3422.7,3422.5,0.29271]
[1735548438148,0.93769401,3422.6,3422.1,4.59485926]
[1735548438449,0.29273,3422.4,3422.1,4.88760926]
[1735548438644,0.18299401,3422.3,3422.1,4.88760926]
[1735548438950,0.18299401,3422.3,3422.1,4.59485926]
[1735548438951,0.95229401,3422.3,3422.1,4.59485926]
[1735548439146,0.7693,3422.3,3422.2,0.29275]
[1735548439346,0.95231873,3422.3,3422.2,0.29275]
[1735548439546,0.7693,3422.3,3422.2,0.29275]
[1735548439749,0.95232241,3422.3,3422.2,0.29275]
[1735548440755,0.95232241,3422.3,3422.1,0.29275]
[1735548440954,0.18302241,3422.2,3422.1,0.29275]
[1735548443257,0.18302241,3422.2,3422.0,1.164]
[1735548443258,0.18302103,3422.2,3422.0,1.164]
[1735548443554,0.18302094,3422.1,3422.0,1.45676]
[1735548445054,0.18303141,3422.1,3422.0,1.164]
[1735548445247,1.06204,3422.3,3422.1,0.29275]
[1735548445447,0.1830326,3422.2,3422.1,0.29275]
[1735548445947,0.18302953,3422.2,3422.1,0.29275]
[1735548446645,3.39082953,3422.2,3422.1,0.29275]
[1735548447443,3.84469554,3422.2,3422.1,0.29275]
[1735548448355,3.2078,3422.2,3422.1,0.29275]
[1735548449154,0.45386601,3422.2,3422.1,0.29275]
[1735548450056,0.7693,3422.3,3422.2,0.29275]
[1735548450057,1.22316601,3422.3,3422.2,0.29275]
[1735548450255,0.95232127,3422.3,3422.2,0.29275]
[1735548450860,0.95232127,3422.3,3422.0,1.164]
[1735548451159,0.18302127,3422.2,3422.1,0.29275]
[1735548452557,0.18302019,3422.2,3422.1,0.29275]
[1735548454459,0.63711838,3422.2,3422.1,0.29275]
[1735548454667,0.63704167,3422.2,3422.1,0.29275]
[1735548454957,0.7693,3422.3,3422.1,0.29275]
[1735548455153,0.63698918,3422.2,3422.1,0.29275]
[1735548455359,0.45396856,3422.5,3422.4,0.29273]
[1735548455661,0.7683,3422.8,3422.7,0.2927]
[1735548457357,1.40527151,3422.8,3422.7,0.2927]
[1735548457569,0.95130295,3422.8,3422.7,0.2927]
[1735548457962,1.69797151,3422.8,3422.6,0.29271]
[1735548458159,0.18300732,3422.7,3422.6,0.29271]
[1735548458962,0.62222329,3422.7,3422.6,0.29271]
[1735548460262,2.95975923,3422.7,3422.2,4.59485926]
[1735548460569,3.95426928,3422.3,3422.2,3.36925926]
[1735548460771,3.68354732,3422.3,3422.2,3.36925926]
[1735548461061,4.13722411,3422.3,3422.2,3.36925926]
[1735548461262,3.68358039,3422.3,3422.2,3.36925926]
[1735548461757,8.21228407,3422.3,3421.9,0.29277]
[1735548461958,0.29277,3422.0,3421.7,0.29278]
[1735548462167,1.37251493,3422.2,3421.5,1.45681]
[1735548462168,0.29279,3421.7,3421.5,1.45681]
[1735548462366,0.7358,3421.6,3421.5,1.45681]
[1735548463265,0.29281,3421.4,3421.3,6.89630092]
[1735548463466,3.50061,3421.4,3421.3,6.89630092]
[1735548465078,3.50061,3421.4,3421.0,0.29285]
[1735548465079,0.29283,3421.3,3421.0,0.29285]
[1735548465269,1.03023,3421.3,3421.0,0.29285]
[1735548465769,1.03023,3421.3,3420.9,1.165]
[1735548465770,0.7374,3421.3,3420.9,1.165]
[1735548465965,0.29283,3421.2,3420.9,1.45785]
[1735548466161,0.7374,3421.3,3420.9,1.165]
[1735548466464,0.29284,3421.1,3420.9,1.165]
[1735548466668,0.29284,3421.2,3420.9,1.45786]
[1735548467167,0.29284,3421.1,3420.9,1.165]
[1735548468766,0.7374,3421.3,3420.9,1.165]
[1735548468971,0.7374,3421.3,3420.5,7.88065091]
[1735548468972,3.2078,3421.0,3420.5,8.06130092]
[1735548469168,3.2078,3420.6,3420.4,6.89630092]
[1735548469475,1.09629,3420.5,3420.4,6.89630092]
[1735548470563,1.09629,3420.5,3419.8,8.35425092]
[1735548470866,3.50072,3420.2,3419.8,8.35425092]
[1735548471268,0.815,3420.1,3419.9,0.29294]
[1735548471470,0.815,3420.1,3420.0,0.29293]
[1735548472171,3.2078,3420.2,3419.9,2.33753594]
[1735548472475,3.2078,3420.6,3420.5,0.29289]
[1735548472783,3.42370099,3420.7,3420.6,0.29288]
[1735548473474,0.7632,3420.8,3420.6,0.29288]
[1735548473668,0.7632,3420.8,3420.4,0.7487]
[1735548473866,1.05607,3420.8,3420.4,0.7487]
[1735548474169,0.7632,3420.8,3420.5,0.29289]
[1735548474673,1.05607,3420.8,3420.5,0.29289]
[1735548475278,3.971,3420.8,3420.3,0.29291]
[1735548475476,0.29288,3420.7,3420.3,0.29291]
[1735548475775,3.971,3420.8,3419.9,5.1774]
[1735548475976,0.29289,3420.6,3420.2,0.29292]
[1735548476976,0.29289,3420.5,3420.2,0.29292]
[1735548477179,3.971,3420.8,3420.2,0.29292]
[1735548477380,0.29289,3420.6,3420.2,0.29292]
[1735548477679,0.29289,3420.5,3420.2,0.29292]
[1735548479381,0.29288,3420.7,3420.4,0.2929]
[1735548479978,4.26387,3420.8,3420.5,0.29289]
[1735548480191,3.971,3420.8,3420.0,3.10723594]
[1735548480386,4.26387,3420.8,3420.5,0.29289]
[1735548480693,3.971,3420.8,3420.5,0.29289]
[1735548481391,3.971,3420.8,3420.6,0.29288]
[1735548483495,4.26387,3420.8,3420.5,0.29289]
[1735548483795,3.971,3420.8,3420.4,0.7546]
[1735548483995,4.26387,3420.8,3420.5,0.29289]
[1735548484499,0.29288,3420.7,3420.4,1.0475]
[1735548484695,0.29289,3420.6,3420.4,0.7546]
[1735548485089,0.29289,3420.6,3420.4,1.0475]
[1735548485492,0.2929,3420.4,3420.3,1.165]
[1735548486795,0.2929,3420.4,3420.1,1.45792]
[1735548487198,3.971,3420.8,3420.1,1.165]
[1735548487500,3.2078,3420.8,3420.7,0.29287]
[1735548487891,3.2078,3420.8,3420.7,1.06537]
[1735548488089,3.2078,3420.8,3420.7,1.81977]
[1735548488289,3.2078,3420.8,3420.7,1.5269]
[1735548488494,3.50067,3420.8,3420.5,0.29289]
[1735548488893,3.50067,3420.8,3420.6,0.29288]
[1735548489196,3.2078,3420.8,3420.7,0.29287]
[1735548489895,4.25637,3420.8,3420.3,3.86443594]
[1735548490095,4.25637,3420.8,3420.6,0.29288]
[1735548490892,0.29288,3420.7,3420.5,1.165]
[1735548491090,0.7976,3420.7,3420.5,1.45789]
[1735548491289,1.09048,3420.7,3420.5,1.45789]
[1735548491686,1.09048,3420.7,3420.5,0.29289]
[1735548491687,0.7976,3420.7,3420.5,0.29289]
[1735548491888,0.7976,3420.7,3420.6,0.29288]
[1735548492093,3.2078,3421.2,3420.6,2.33753594]
[1735548492290,1.52634742,3421.4,3421.1,0.29284]
[1735548492894,3.2078,3421.3,3421.2,0.29282]
[1735548493194,3.2078,3421.3,3421.1,0.29284]
[1735548493395,3.2078,3421.3,3421.0,0.29285]
[1735548493595,3.2078,3421.3,3421.1,0.29284]
[1735548493897,1.52660841,3421.4,3421.3,0.29282]
[1735548493898,0.7799,3421.4,3421.3,0.29282]
[1735548494093,1.5662,3421.5,3421.4,0.29281]
[1735548495501,3.66183496,3421.7,3421.3,1.165]
[1735548495695,3.95462496,3421.7,3421.5,0.2928]
[1735548496297,3.95462496,3421.7,3421.3,1.165]
[1735548496502,3.95462496,3421.7,3421.4,0.29281]
[1735548497702,3.95462496,3421.7,3421.3,1.165]
[1735548498204,3.95462496,3421.7,3421.4,0.29281]
[1735548499300,3.50059,3421.7,3421.4,0.29281]
[1735548500297,3.2078,3421.7,3421.3,1.165]
[1735548500496,3.50059,3421.7,3421.4,0.29281]
[1735548500692,0.7978,3421.8,3421.3,1.165]
[1735548500693,0.7978,3421.8,3421.7,0.29279]
[1735548500897,0.7937,3421.9,3421.8,0.29278]
[1735548501209,4.14720099,3422.1,3422.0,0.29276]
[1735548501408,3.42370099,3422.1,3422.0,0.29276]
[1735548502599,3.42370099,3422.1,3421.8,3.04553594]
[1735548502600,1.4891,3422.3,3422.1,0.29275]
[1735548502809,0.18302102,3422.2,3422.1,1.45775]
[1735548503198,0.18302112,3422.2,3422.1,1.45775]
[1735548506909,0.18302112,3422.2,3422.1,1.165]
[1735548507307,0.18302112,3422.2,3422.1,1.45775]
[1735548509010,0.18302112,3422.2,3422.1,1.165]
[1735548509312,0.47577913,3422.2,3422.1,1.165]
[1735548509513,0.18302913,3422.2,3422.1,1.165]
[1735548510713,0.18302913,3422.2,3422.1,1.45775]
[1735548511213,0.18302913,3422.2,3422.1,1.165]
[1735548512214,0.47577913,3422.2,3422.1,1.165]
[1735548514011,0.47577913,3422.2,3422.1,1.45775]
[1735548514012,0.18302913,3422.2,3422.1,1.45775]
[1735548514915,1.4891,3422.3,3421.7,3.2078]
[1735548515206,3.2078,3422.0,3421.4,0.7074]
[1735548515412,1.07828,3421.9,3421.6,0.29279]
[1735548516208,0.7855,3421.9,3421.6,0.29279]
[1735548516415,0.29279,3421.8,3421.6,0.29279]
[1735548516715,0.7447,3421.7,3421.6,0.29279]
[1735548517014,0.7447,3421.7,3421.4,1.164]
[1735548517208,0.29281,3421.4,3421.2,1.45683]
[1735548517507,0.29283,3421.2,3421.0,1.45684]
[1735548517708,0.7422,3421.1,3421.0,1.164]
[1735548517913,1.5243,3421.1,3420.9,1.45686]
[1735548518111,0.7784,3421.0,3420.9,1.45686]
[1735548518312,0.29287,3420.7,3420.6,6.89630092]
[1735548518613,0.29287,3420.7,3420.3,12.40146606]
[1735548518614,0.29287,3420.7,3420.4,1.164]
[1735548518808,0.29287,3420.7,3420.4,1.45689]
[1735548519008,0.7784,3421.0,3420.4,1.164]
[1735548519213,0.29286,3420.9,3420.4,1.164]
[1735548519410,0.29286,3420.9,3420.6,0.29288]
[1735548519613,0.29287,3420.8,3420.4,1.4569]
[1735548520716,0.29286,3420.9,3420.4,1.164]
[1735548521421,0.29286,3420.9,3420.5,0.29289]
[1735548521624,0.7784,3421.0,3420.5,0.29289]
[1735548521924,0.29286,3420.9,3420.5,0.29289]
[1735548522113,0.29287,3420.8,3420.5,0.29289]
[1735548522312,0.29286,3420.9,3420.5,0.29289]
[1735548522717,0.29286,3420.9,3420.6,0.29288]
[1735548523010,0.7784,3421.0,3420.9,0.29286]
[1735548523210,0.7784,3421.0,3420.5,0.7514]
[1735548523422,1.07125,3421.0,3420.7,0.29287]
[1735548523715,0.29287,3420.8,3420.5,0.29289]
[1735548523922,0.7784,3421.0,3420.5,0.29289]
[1735548524120,0.29288,3420.7,3420.4,1.4569]
[1735548524619,0.7784,3421.0,3420.4,1.164]
[1735548524817,0.29287,3420.7,3420.4,1.4569]
[1735548525425,0.7784,3421.0,3420.5,0.29289]
[1735548525618,0.29287,3420.7,3420.4,1.164]
[1735548525918,0.29287,3420.7,3420.4,1.4569]
[1735548526122,0.29287,3420.8,3420.5,0.29289]
[1735548526311,0.29288,3420.7,3420.4,1.4569]
[1735548526717,0.29289,3420.6,3420.4,1.164]
[1735548526918,0.29289,3420.6,3420.3,3.5007]
[1735548527122,0.7763,3420.5,3420.3,3.5007]
[1735548527317,0.7355,3420.4,3420.3,3.5007]
[1735548527513,0.7355,3420.4,3420.3,3.2078]
[1735548528324,0.7355,3420.4,3420.3,3.50071]
[1735548529522,0.7355,3420.4,3420.3,0.29291]
[1735548532923,0.7355,3420.4,3420.2,0.29291]
[1735548533226,0.29292,3420.2,3419.9,0.29294]
[1735548533422,0.758,3420.3,3419.8,4.3718]
[1735548533625,0.29294,3419.9,3419.8,3.2078]
[1735548534331,0.29295,3419.8,3419.5,7.18927092]
[1735548534631,1.81015,3419.8,3419.5,7.18927092]
[1735548535431,0.29296,3419.7,3419.5,7.18927092]
[1735548536035,0.29296,3419.7,3419.5,0.29297]
[1735548536434,1.81016,3419.8,3419.5,0.29297]
[1735548536929,1.81015,3419.8,3419.5,0.29297]
[1735548537228,1.5172,3419.8,3419.4,0.7789]
[1735548537440,1.5172,3419.8,3419.3,3.2078]
[1735548537628,0.29297,3419.6,3419.3,3.50079]
[1735548537832,0.29296,3419.7,3419.4,0.29298]
[1735548538326,0.7787,3419.6,3419.4,0.29298]
[1735548540334,0.29298,3419.5,3419.3,3.2078]
[1735548540535,0.7787,3419.6,3419.5,0.29298]
[1735548540732,1.5172,3419.8,3419.7,0.29296]
[1735548543338,1.5172,3419.8,3419.6,0.29296]
[1735548543635,0.29296,3419.7,3419.4,0.29298]
[1735548543937,0.29296,3419.7,3419.3,3.2078]
[1735548543938,0.29296,3419.7,3419.5,0.29297]
[1735548544736,1.5172,3419.8,3419.5,0.29297]
[1735548544930,1.5172,3419.8,3419.3,3.2078]
[1735548545127,1.5172,3419.8,3419.6,0.29296]
[1735548545534,1.81015,3419.8,3419.6,0.29296]
[1735548546338,1.5172,3419.8,3419.3,3.2078]
[1735548546539,1.5172,3419.8,3419.6,0.29296]
[1735548547337,1.5172,3419.8,3419.3,3.2078]
[1735548547538,1.81016,3419.8,3419.6,0.29297]
[1735548548039,1.5172,3419.8,3419.7,0.29296]
[1735548548939,1.5172,3419.8,3419.3,3.2078]
[1735548549140,1.81016,3419.8,3419.5,0.29297]
[1735548549442,1.5172,3419.8,3419.6,0.29296]
[1735548549842,1.81016,3419.8,3419.6,0.29296]